bitfinex/quotes_BTCUSD_20240803
["timestamp","ask_amount","ask_price","bid_price","bid_amount"]
[1722707000624,1.218405,60880.0,60879.0,0.25745924]
[1722707001064,1.218405,60880.0,60861.0,0.16588239]
[1722707001065,0.0809,60873.0,60861.0,0.01145483]
[1722707001294,0.492918,60862.0,60861.0,0.00157439]
[1722707001520,0.2347,60871.0,60852.0,0.00157439]
[1722707001754,0.164293,60867.0,60855.0,0.07875194]
[1722707001971,0.1495,60873.0,60856.0,0.00157439]
[1722707002194,0.328588,60867.0,60852.0,0.00157439]
[1722707002402,0.164327,60854.0,60853.0,0.15745924]
[1722707002826,0.492982,60854.0,60853.0,0.15745924]
[1722707003051,1.150292,60854.0,60853.0,0.15745924]
[1722707003264,0.492982,60854.0,60853.0,0.15745924]
[1722707003534,0.066,60865.0,60853.0,0.15745924]
[1722707003741,0.066,60865.0,60858.0,0.07875194]
[1722707004005,0.087,60867.0,60860.0,0.15745924]
[1722707004217,0.087,60876.0,60866.0,0.07875194]
[1722707004421,0.328571,60870.0,60867.0,0.15745924]
[1722707004625,0.164289,60868.0,60867.0,0.15745924]
[1722707004831,0.492868,60868.0,60867.0,0.25745924]
[1722707005038,0.821447,60868.0,60867.0,0.25745924]
[1722707005261,0.328573,60870.0,60867.0,0.25745924]
[1722707005486,0.328563,60872.0,60867.0,0.25745924]
[1722707005697,0.164289,60868.0,60867.0,0.25745924]
[1722707005905,0.164287,60869.0,60867.0,0.25745924]
[1722707006576,0.164289,60868.0,60867.0,0.26045924]
[1722707006784,0.164288,60869.0,60867.0,0.26045924]
[1722707007012,0.328571,60870.0,60867.0,0.26045924]
[1722707007013,0.164284,60870.0,60867.0,0.2667219]
[1722707007229,0.066,60889.0,60869.0,0.15745924]
[1722707007438,0.066,60889.0,60879.0,0.23621118]
[1722707007654,0.066,60889.0,60879.0,0.42347118]
[1722707007878,0.164236,60888.0,60879.0,0.52347118]
[1722707008089,0.066,60889.0,60879.0,0.36843236]
[1722707008090,0.164241,60886.0,60879.0,0.36843236]
[1722707008303,0.01892948,60894.0,60879.0,0.86121236]
[1722707008520,0.64599164,60894.0,60879.0,1.33583236]
[1722707008746,0.48177164,60894.0,60879.0,0.67879236]
[1722707008953,0.328476,60888.0,60879.0,0.28968042]
[1722707009165,0.164241,60886.0,60879.0,0.28968042]
[1722707009370,0.164245,60885.0,60879.0,0.28968042]
[1722707009581,0.328472,60888.0,60879.0,0.26668042]
[1722707009806,0.00926,60894.0,60879.0,0.44471924]
[1722707010062,0.00926,60894.0,60879.0,1.12498042]
[1722707010271,0.164229,60891.0,60879.0,1.11098042]
[1722707010475,0.328465,60890.0,60879.0,0.28968042]
[1722707010678,0.00926,60894.0,60879.0,0.78946042]
[1722707010887,0.164228,60891.0,60879.0,0.80346042]
[1722707011097,0.164228,60891.0,60879.0,0.78946042]
[1722707011306,0.164242,60886.0,60879.0,0.29668042]
[1722707011507,0.164242,60886.0,60879.0,0.28768042]
[1722707011712,0.32848,60887.0,60879.0,0.28768042]
[1722707011713,0.328479,60887.0,60879.0,0.27696539]
[1722707011952,0.16425,60883.0,60879.0,0.27368042]
[1722707012156,0.16425,60883.0,60879.0,0.26668042]
[1722707012157,0.087,60883.0,60879.0,0.26668042]
[1722707012364,0.087,60883.0,60879.0,0.29468042]
[1722707012574,0.087,60892.0,60879.0,1.11598042]
[1722707012783,0.087,60892.0,60879.0,1.13898042]
[1722707012995,0.415416,60899.0,60879.0,1.59960042]
[1722707013204,0.415416,60899.0,60879.0,1.72141522]
[1722707013205,0.087,60899.0,60879.0,1.72141522]
[1722707013417,0.173472,60897.0,60879.0,1.69233266]
[1722707013892,0.164214,60896.0,60879.0,1.71433266]
[1722707014096,0.00926,60897.0,60879.0,2.02685266]
[1722707014311,0.00926,60897.0,60879.0,2.27652819]
[1722707014519,0.00926,60897.0,60879.0,2.07376266]
[1722707014727,0.00926,60897.0,60879.0,2.05947107]
[1722707015152,0.00926,60897.0,60879.0,2.07347107]
[1722707015353,0.00926,60897.0,60879.0,2.05947107]
[1722707015572,0.00926,60897.0,60879.0,2.05347107]
[1722707015779,0.00926,60897.0,60879.0,2.06747107]
[1722707015987,0.00926,60897.0,60879.0,2.07347107]
[1722707016230,0.00926,60897.0,60879.0,2.08547107]
[1722707016860,0.00926,60897.0,60879.0,2.38599107]
[1722707017275,0.00926,60897.0,60879.0,2.41399107]
[1722707017500,0.00926,60897.0,60879.0,2.39999107]
[1722707017884,0.00926,60897.0,60879.0,2.08747107]
[1722707018104,0.173472,60897.0,60879.0,2.03247107]
[1722707018309,0.00926,60897.0,60879.0,2.04247107]
[1722707018512,0.00926,60897.0,60879.0,2.06447107]
[1722707018989,0.00926,60897.0,60893.0,0.537566]
[1722707019194,0.00926,60897.0,60893.0,1.54274345]
[1722707019411,0.00926,60897.0,60893.0,1.88036026]
[1722707019615,0.00926,60897.0,60893.0,1.54191626]
[1722707019825,0.00926,60897.0,60893.0,1.11074205]
[1722707020242,0.00926,60897.0,60893.0,1.45318605]
[1722707020451,0.00926,60897.0,60893.0,1.46718605]
[1722707020662,0.00926,60897.0,60893.0,0.48185405]
[1722707020878,0.00926,60897.0,60893.0,0.81029805]
[1722707021083,0.00926,60897.0,60893.0,0.45885405]
[1722707021084,0.07526,60894.0,60893.0,0.45885405]
[1722707021568,0.07526,60894.0,60893.0,0.78729805]
[1722707022212,0.239479,60894.0,60893.0,0.19463205]
[1722707022426,0.07526,60894.0,60893.0,0.35885405]
[1722707022863,0.07526,60894.0,60893.0,0.68729805]
[1722707023076,0.00926,60894.0,60893.0,1.34418605]
[1722707023326,0.00926,60894.0,60893.0,1.41408299]
[1722707023542,0.00926,60894.0,60893.0,1.42809988]
[1722707023758,0.00926,60894.0,60893.0,1.46512327]
[1722707023962,0.00926,60894.0,60893.0,1.58955723]
[1722707024184,0.00926,60894.0,60893.0,1.5651231]
[1722707024386,0.00926,60894.0,60893.0,1.56511645]
[1722707024612,0.00926,60894.0,60893.0,1.56514733]
[1722707025070,0.00926,60894.0,60893.0,1.56514836]
[1722707025283,0.00926,60894.0,60893.0,1.46718605]
[1722707025490,0.00926,60894.0,60893.0,1.46918605]
[1722707025886,0.00926,60894.0,60893.0,1.46718605]
[1722707026297,0.00926,60894.0,60893.0,1.45318605]
[1722707026512,0.00926,60894.0,60893.0,1.589654]
[1722707026730,0.00926,60894.0,60893.0,1.13874205]
[1722707026930,0.00926,60894.0,60893.0,1.22272184]
[1722707027171,0.00926,60894.0,60893.0,1.12474205]
[1722707027359,0.00926,60894.0,60893.0,1.23871834]
[1722707027578,0.00926,60894.0,60893.0,1.23874394]
[1722707027785,0.00926,60894.0,60893.0,0.81029805]
[1722707028414,0.00926,60894.0,60893.0,1.13874205]
[1722707029766,0.00926,60894.0,60893.0,0.81029805]
[1722707029973,0.00926,60894.0,60893.0,0.29463205]
[1722707030179,0.00926,60894.0,60893.0,0.45885405]
[1722707030388,0.00926,60894.0,60893.0,1.13874205]
[1722707030595,0.00926,60894.0,60893.0,1.46718605]
[1722707032261,0.00886,60894.0,60893.0,1.46718605]
[1722707033740,0.00886,60894.0,60893.0,0.81029805]
[1722707033948,0.00886,60894.0,60893.0,0.48185405]
[1722707034172,0.00886,60894.0,60893.0,0.81029805]
[1722707034734,0.00886,60894.0,60893.0,0.48185405]
[1722707035118,0.330379,60894.0,60893.0,0.19463205]
[1722707035526,0.987257,60894.0,60893.0,0.19463205]
[1722707035732,0.330379,60894.0,60893.0,0.19463205]
[1722707036093,0.658818,60894.0,60893.0,0.16663205]
[1722707036296,0.16616,60894.0,60893.0,0.17663205]
[1722707036554,0.16616,60894.0,60893.0,0.18045924]
[1722707036764,0.330379,60894.0,60893.0,0.17663205]
[1722707036987,0.987257,60894.0,60893.0,0.17663205]
[1722707037196,0.987257,60894.0,60893.0,0.18963205]
[1722707037197,0.16616,60894.0,60893.0,0.18963205]
[1722707037428,0.16616,60894.0,60893.0,0.18045924]
[1722707037429,0.330379,60894.0,60893.0,0.18045924]
[1722707037605,0.658818,60894.0,60893.0,0.17963205]
[1722707037830,0.987257,60894.0,60893.0,0.19163205]
[1722707038011,0.658818,60894.0,60893.0,0.19163205]
[1722707038234,0.987257,60894.0,60893.0,0.18245924]
[1722707038659,0.658818,60894.0,60893.0,0.18245924]
[1722707039187,0.658818,60894.0,60893.0,0.17045924]
[1722707039391,0.987257,60894.0,60893.0,0.16545924]
[1722707039615,0.987257,60894.0,60893.0,0.17545924]
[1722707039862,0.658818,60894.0,60893.0,0.16545924]
[1722707040278,0.658818,60894.0,60893.0,0.17245924]
[1722707040497,1.315696,60894.0,60893.0,0.015]
[1722707040710,0.987257,60894.0,60893.0,0.007]
[1722707040923,0.987257,60894.0,60893.0,0.013]
[1722707040924,1.37222538,60894.0,60893.0,0.013]
[1722707041698,0.16616,60894.0,60893.0,0.17045924]
[1722707041900,0.16616,60894.0,60893.0,0.66312524]
[1722707041901,0.00886,60894.0,60893.0,0.66312524]
[1722707042158,0.00886,60894.0,60893.0,0.34385405]
[1722707042312,0.00886,60894.0,60893.0,0.7579536]
[1722707043011,0.00886,60894.0,60893.0,0.75095421]
[1722707043212,0.00886,60894.0,60893.0,0.76495421]
[1722707043568,0.00886,60894.0,60893.0,0.67329805]
[1722707043989,0.00886,60894.0,60893.0,0.77246992]
[1722707044269,0.00886,60894.0,60893.0,0.68729805]
[1722707044479,0.00886,60894.0,60893.0,0.35885405]
[1722707044681,0.00886,60894.0,60893.0,0.19463205]
[1722707044885,0.00886,60894.0,60893.0,0.68729805]
[1722707045880,0.00886,60894.0,60893.0,0.77218917]
[1722707046106,0.00886,60894.0,60893.0,0.35885405]
[1722707046611,0.00886,60894.0,60893.0,0.68729805]
[1722707047014,0.00886,60894.0,60893.0,0.77212667]
[1722707047447,0.00886,60894.0,60893.0,0.68729805]
[1722707047857,0.00886,60894.0,60893.0,0.77215644]
[1722707048058,0.00886,60894.0,60893.0,0.19463205]
[1722707048467,0.00886,60894.0,60893.0,0.35885405]
[1722707048671,0.00886,60894.0,60893.0,1.1234147]
[1722707048873,0.00886,60894.0,60893.0,1.03874205]
[1722707049049,0.00886,60894.0,60893.0,1.45185534]
[1722707049691,0.00886,60894.0,60893.0,1.61615534]
[1722707050336,0.00886,60894.0,60893.0,1.55185534]
[1722707051205,0.00886,60894.0,60893.0,1.22341134]
[1722707052105,0.00886,60894.0,60893.0,1.55203397]
[1722707052287,0.00886,60894.0,60893.0,1.22358997]
[1722707052506,0.00886,60894.0,60893.0,1.55203397]
[1722707052713,0.00886,60894.0,60893.0,1.22358997]
[1722707053129,0.00886,60894.0,60893.0,0.89514597]
[1722707053546,0.00886,60894.0,60893.0,1.22358997]
[1722707053969,0.00886,60894.0,60893.0,0.89514597]
[1722707054425,0.00886,60894.0,60893.0,1.22358997]
[1722707055386,0.00886,60894.0,60893.0,1.22419144]
[1722707056173,0.00886,60894.0,60893.0,0.89574744]
[1722707057177,0.00886,60894.0,60893.0,0.56730344]
[1722707057463,0.654418,60894.0,60893.0,0.28008144]
[1722707057668,0.07946,60894.0,60893.0,0.35885405]
[1722707057886,0.07946,60894.0,60893.0,0.79674719]
[1722707057887,0.00886,60894.0,60893.0,0.79674719]
[1722707058087,0.00886,60894.0,60893.0,0.81674719]
[1722707058421,0.00886,60894.0,60893.0,1.14780607]
[1722707058627,0.00886,60894.0,60893.0,0.91936207]
[1722707058833,0.00886,60894.0,60893.0,0.59091807]
[1722707059314,0.00886,60894.0,60893.0,0.89636207]
[1722707059487,0.00886,60894.0,60893.0,1.24780607]
[1722707060562,0.00886,60894.0,60893.0,0.89636207]
[1722707060956,0.00886,60894.0,60893.0,1.30355801]
[1722707061158,0.00886,60894.0,60893.0,1.24780607]
[1722707061570,0.00886,60894.0,60893.0,1.57825007]
[1722707061810,0.00886,60894.0,60893.0,1.67671146]
[1722707062018,0.00886,60894.0,60893.0,1.67471146]
[1722707062194,0.00886,60894.0,60893.0,1.57656442]
[1722707062345,0.00886,60894.0,60893.0,1.69964115]
[1722707062550,0.00886,60894.0,60893.0,1.57856442]
[1722707062769,0.00886,60894.0,60893.0,1.57656442]
[1722707064061,0.00886,60894.0,60893.0,1.69962568]
[1722707064844,0.00886,60894.0,60893.0,1.57656442]
[1722707065070,0.00886,60894.0,60893.0,1.04273361]
[1722707065349,0.07456,60894.0,60893.0,1.24812042]
[1722707065523,0.00886,60894.0,60893.0,1.24828864]
[1722707065858,0.00886,60894.0,60893.0,0.56840064]
[1722707065989,0.00886,60894.0,60893.0,0.89684464]
[1722707066679,0.00886,60894.0,60893.0,1.22620164]
[1722707067423,0.00886,60894.0,60893.0,0.89775764]
[1722707067582,0.00886,60894.0,60893.0,0.92075764]
[1722707068219,0.00886,60894.0,60893.0,0.98645764]
[1722707068615,0.00886,60894.0,60893.0,0.49379164]
[1722707068916,0.00886,60894.0,60893.0,0.89952593]
[1722707069115,0.00886,60894.0,60893.0,0.98617025]
[1722707069355,0.00886,60894.0,60893.0,1.31461329]
[1722707070282,0.00886,60894.0,60893.0,0.65772529]
[1722707070617,0.00886,60894.0,60893.0,0.98616929]
[1722707071772,0.00886,60894.0,60893.0,0.65772529]
[1722707071973,0.00886,60894.0,60893.0,0.89952593]
[1722707072351,0.00886,60894.0,60893.0,1.31473068]
[1722707072553,0.00886,60894.0,60893.0,1.22796993]
[1722707072761,0.00886,60894.0,60893.0,1.31478014]
[1722707072968,0.00886,60894.0,60893.0,1.31477764]
[1722707074586,0.00886,60894.0,60893.0,1.64322164]
[1722707074984,0.00886,60894.0,60893.0,2.14694478]
[1722707075189,0.00886,60894.0,60893.0,2.14976564]
[1722707075593,0.00886,60894.0,60893.0,2.46806536]
[1722707075816,0.00886,60894.0,60893.0,2.30034664]
[1722707076222,0.00886,60894.0,60893.0,2.29834664]
[1722707076435,0.00886,60894.0,60893.0,2.30451512]
[1722707076625,0.00886,60894.0,60893.0,2.12193412]
[1722707076826,0.00886,60894.0,60893.0,2.13593412]
[1722707076977,0.00886,60894.0,60893.0,1.64339012]
[1722707077787,0.00886,60894.0,60893.0,1.62939012]
[1722707078049,0.00886,60894.0,60893.0,1.64339012]
[1722707079163,0.00886,60894.0,60893.0,1.71384322]
[1722707079362,0.00886,60894.0,60893.0,1.62939012]
[1722707079567,0.00886,60894.0,60893.0,1.30094612]
[1722707079773,0.00886,60894.0,60893.0,1.30076596]
[1722707080193,0.00886,60894.0,60893.0,1.22796993]
[1722707080397,0.00886,60894.0,60893.0,1.31476602]
[1722707080600,0.00886,60894.0,60893.0,1.27776602]
[1722707081186,0.00886,60894.0,60893.0,1.26376602]
[1722707081603,0.00886,60894.0,60893.0,1.27776602]
[1722707081991,0.00886,60894.0,60893.0,1.29176602]
[1722707082590,0.00886,60894.0,60893.0,0.47065602]
[1722707082797,0.00886,60894.0,60893.0,0.30495602]
[1722707083202,0.00886,60894.0,60893.0,0.21815993]
[1722707083454,0.00886,60894.0,60893.0,0.30504276]
[1722707083651,0.00886,60894.0,60893.0,0.29104276]
[1722707084001,0.00886,60894.0,60893.0,0.27704276]
[1722707084208,0.00886,60894.0,60893.0,0.29104276]
[1722707084398,0.00886,60894.0,60893.0,0.27704276]
[1722707084925,0.00886,60894.0,60893.0,0.45526476]
[1722707085035,0.00886,60894.0,60893.0,0.46926476]
[1722707086281,0.00886,60894.0,60893.0,0.45526476]
[1722707086703,0.00886,60894.0,60893.0,0.46926476]
[1722707087529,0.00886,60894.0,60893.0,0.30504276]
[1722707087732,0.572718,60894.0,60893.0,0.21815993]
[1722707087931,0.990057,60894.0,60893.0,0.21815993]
[1722707088287,0.990057,60894.0,60893.0,0.20637224]
[1722707088538,0.16896,60894.0,60893.0,0.37059424]
[1722707088739,0.16896,60894.0,60893.0,0.20637224]
[1722707088960,0.16896,60894.0,60893.0,0.21792409]
[1722707091139,0.990057,60894.0,60893.0,0.21792409]
[1722707091339,1.505296,60894.0,60893.0,0.06046485]
[1722707091533,1.54023028,60894.0,60893.0,0.048913]
[1722707092185,1.54023028,60894.0,60893.0,0.034913]
[1722707092517,1.53913028,60894.0,60893.0,0.043913]
[1722707092719,1.86756928,60894.0,60893.0,0.043913]
[1722707093039,1.86756928,60894.0,60893.0,0.029913]
[1722707093263,1.86756928,60894.0,60880.0,0.000913]
[1722707093264,0.981372,60881.0,60880.0,0.000913]
[1722707093576,0.981372,60881.0,60880.0,0.15837224]
[1722707093780,1.309881,60881.0,60880.0,0.15837224]
[1722707094050,1.309881,60881.0,60880.0,0.000913]
[1722707094281,1.33267423,60881.0,60880.0,0.000913]
[1722707094494,1.6709515,60881.0,60880.0,0.000913]
[1722707094747,1.6609515,60881.0,60880.0,0.011913]
[1722707094917,1.3324425,60881.0,60880.0,0.011913]
[1722707095537,1.0039335,60881.0,60880.0,0.011913]
[1722707095767,0.1601,60881.0,60880.0,0.16937224]
[1722707096179,0.1601,60881.0,60880.0,0.16998398]
[1722707096371,0.1661,60881.0,60880.0,0.17098398]
[1722707096574,0.1661,60881.0,60880.0,0.17198398]
[1722707096759,0.1601,60881.0,60880.0,0.17098398]
[1722707097176,0.17001415,60881.0,60880.0,0.17398398]
[1722707097379,0.17001415,60881.0,60880.0,0.17298398]
[1722707097584,0.17001415,60881.0,60880.0,0.17698398]
[1722707098579,0.17001415,60881.0,60880.0,0.17398398]
[1722707098783,0.17101415,60881.0,60880.0,0.18398398]
[1722707099394,0.17101415,60881.0,60880.0,0.19498398]
[1722707100162,0.328462,60890.0,60881.0,0.82898585]
[1722707100375,0.00776,60894.0,60882.0,0.23949618]
[1722707100583,0.0176881,60894.0,60883.0,0.1837439]
[1722707100816,0.0176881,60894.0,60887.0,0.328472]
[1722707101066,0.00776,60894.0,60889.0,0.328463]
[1722707101350,0.00776,60894.0,60891.0,0.164225]
[1722707101480,0.00776,60894.0,60892.0,0.32168324]
[1722707101687,0.00776,60894.0,60892.0,0.16901569]
[1722707101896,1.00791,60893.0,60892.0,0.16901569]
[1722707102094,1.336354,60893.0,60892.0,0.01155645]
[1722707102307,0.001,60890.0,60880.0,0.000913]
[1722707102507,0.001,60890.0,60883.0,0.164247]
[1722707102721,0.001,60890.0,60884.0,0.15745924]
[1722707102722,0.164238,60888.0,60884.0,0.15745924]
[1722707102929,0.00776,60894.0,60884.0,0.15745924]
[1722707102930,0.00776,60894.0,60886.0,0.328481]
[1722707103128,0.00776,60894.0,60892.0,0.01]
[1722707103343,0.164222,60893.0,60892.0,0.02]
[1722707103558,1.299254,60893.0,60892.0,0.01]
[1722707103761,0.164244,60885.0,60881.0,0.82898585]
[1722707103965,0.164244,60885.0,60884.0,0.028]
[1722707104163,0.89062,60885.0,60884.0,0.014]
[1722707105039,0.562132,60885.0,60884.0,0.014]
[1722707105240,0.164252,60882.0,60881.0,0.82898585]
[1722707105442,0.0694,60885.0,60881.0,0.98644509]
[1722707105649,0.328493,60884.0,60882.0,0.16906176]
[1722707106131,0.164249,60883.0,60882.0,0.16906176]
[1722707106370,0.00966428,60885.0,60884.0,0.004]
[1722707106600,0.0694,60890.0,60884.0,0.08075924]
[1722707106835,0.164233,60889.0,60884.0,0.09235255]
[1722707107075,0.0694,60890.0,60884.0,0.09235255]
[1722707107584,0.492732,60885.0,60884.0,0.01159331]
[1722707108042,0.164252,60882.0,60881.0,0.82898585]
[1722707108249,0.492756,60882.0,60881.0,0.98644509]
[1722707108876,0.164252,60882.0,60881.0,0.98644509]
[1722707109565,0.492756,60882.0,60881.0,0.98644509]
[1722707109826,0.164252,60882.0,60881.0,0.98744509]
[1722707110066,0.164252,60882.0,60881.0,0.99744509]
[1722707110248,0.492756,60882.0,60881.0,0.99644509]
[1722707110767,0.1868,60888.0,60881.0,0.99644509]
[1722707111041,0.164245,60885.0,60882.0,0.15745924]
[1722707111487,0.328476,60888.0,60882.0,0.15745924]
[1722707111663,0.0694,60890.0,60882.0,0.15745924]
[1722707111887,0.0694,60890.0,60885.0,0.164243]
[1722707112143,0.08991621,60893.0,60886.0,0.15745924]
[1722707112415,0.164238,60887.0,60886.0,0.15745924]
[1722707112657,0.08991621,60893.0,60886.0,0.15745924]
[1722707112902,0.08991621,60893.0,60886.0,0.32170024]
[1722707113125,0.001,60890.0,60886.0,0.32169924]
[1722707113356,0.001,60890.0,60889.0,0.164233]
[1722707113579,0.001,60890.0,60889.0,0.15745924]
[1722707113819,0.19456,60894.0,60889.0,0.15745924]
[1722707114038,0.328464,60890.0,60881.0,0.82898585]
[1722707114288,0.0803,60889.0,60882.0,0.15745924]
[1722707114511,0.0803,60889.0,60883.0,0.164247]
[1722707114752,0.0803,60889.0,60884.0,0.15745924]
[1722707115213,0.244533,60889.0,60884.0,0.15745924]
[1722707115512,0.001,60893.0,60884.0,0.15745924]
[1722707115743,0.001,60893.0,60889.0,0.005]
[1722707115991,0.01994109,60894.0,60890.0,0.15745924]
[1722707116296,0.01994109,60894.0,60892.0,0.164225]
[1722707116549,0.00776,60894.0,60893.0,0.15745924]
[1722707117788,0.171979,60894.0,60893.0,0.15745924]
[1722707118046,0.500418,60894.0,60893.0,0.15745924]
[1722707118300,0.82111,60893.0,60892.0,0.003]
[1722707118559,1.299254,60893.0,60892.0,0.003]
[1722707118836,0.985365,60891.0,60881.0,0.82898585]
[1722707119089,0.164247,60884.0,60882.0,0.15745924]
[1722707119374,0.164244,60885.0,60882.0,0.16906176]
[1722707119610,0.164246,60884.0,60882.0,0.16906176]
[1722707119950,0.164244,60885.0,60882.0,0.16906176]
[1722707120093,0.478148,60893.0,60882.0,0.16906176]
[1722707120094,0.1497,60893.0,60883.0,0.07875194]
[1722707120359,0.164228,60891.0,60884.0,0.15745924]
[1722707120609,0.16423,60890.0,60884.0,0.16905255]
[1722707120861,0.313923,60893.0,60884.0,0.49754555]
[1722707121109,0.313923,60893.0,60886.0,0.16424]
[1722707121351,0.313923,60893.0,60885.0,0.328487]
[1722707121352,0.002,60891.0,60887.0,0.32169724]
[1722707121596,0.002,60891.0,60887.0,0.15745924]
[1722707121847,0.00776,60894.0,60888.0,0.164234]
[1722707122092,0.00776,60894.0,60889.0,0.15745924]
[1722707122346,0.00776,60894.0,60889.0,0.16902951]
[1722707122837,0.17198,60894.0,60889.0,0.16902951]
[1722707123086,0.00776,60894.0,60889.0,0.16902951]
[1722707123309,0.164222,60893.0,60889.0,0.16902951]
[1722707123803,0.00776,60894.0,60889.0,0.16902951]
[1722707124259,0.00776,60894.0,60889.0,0.33326151]
[1722707124510,0.00776,60894.0,60893.0,0.82111]
[1722707124733,0.00776,60894.0,60893.0,1.51778021]
[1722707124980,0.00776,60894.0,60893.0,1.52933206]
[1722707125207,0.00776,60894.0,60893.0,1.67853206]
[1722707125771,0.00776,60894.0,60893.0,1.67953206]
[1722707125987,0.00776,60894.0,60893.0,2.00797606]
[1722707126241,0.00776,60894.0,60893.0,2.1308242]
[1722707126383,0.00776,60894.0,60893.0,2.02097606]
[1722707126598,0.00776,60894.0,60893.0,1.67827176]
[1722707126803,0.00776,60894.0,60893.0,1.77653322]
[1722707127014,0.00776,60894.0,60893.0,1.79053322]
[1722707127204,0.00776,60894.0,60893.0,1.77653322]
[1722707127384,0.00776,60894.0,60893.0,1.67827176]
[1722707128000,0.00776,60894.0,60893.0,0.52871776]
[1722707128233,0.00776,60894.0,60893.0,0.26901109]
[1722707128462,0.00776,60894.0,60893.0,0.53171212]
[1722707128662,0.00776,60894.0,60893.0,1.51704326]
[1722707128834,0.00776,60894.0,60893.0,1.59914326]
[1722707129361,0.00776,60894.0,60893.0,0.51533309]
[1722707129613,0.171979,60894.0,60893.0,0.26901109]
[1722707129804,0.171979,60894.0,60893.0,0.29701109]
[1722707129805,0.00776,60894.0,60893.0,0.29701109]
[1722707130146,0.171979,60894.0,60893.0,0.18301109]
[1722707130356,0.828857,60894.0,60893.0,0.18301109]
[1722707130515,0.500418,60894.0,60893.0,0.18301109]
[1722707130693,0.500418,60894.0,60893.0,0.17145924]
[1722707131107,0.171979,60894.0,60893.0,0.17145924]
[1722707131312,0.171979,60894.0,60893.0,0.18301109]
[1722707131516,0.00776,60894.0,60893.0,0.19701109]
[1722707131720,0.171979,60894.0,60893.0,0.18301109]
[1722707132325,0.171979,60894.0,60893.0,0.19701109]
[1722707132326,0.00776,60894.0,60893.0,0.19701109]
[1722707133694,0.00776,60894.0,60893.0,0.18545924]
[1722707134114,0.00776,60894.0,60893.0,0.19701109]
[1722707134255,0.171979,60894.0,60893.0,0.19701109]
[1722707135097,1.19776,60894.0,60893.0,0.19701109]
[1722707135501,1.361979,60894.0,60893.0,0.19701109]
[1722707135705,1.361979,60894.0,60893.0,0.18545924]
[1722707135907,1.19776,60894.0,60893.0,0.18545924]
[1722707136385,1.19776,60894.0,60893.0,0.19701109]
[1722707137273,1.361979,60894.0,60893.0,0.18545924]
[1722707137875,2.495896,60894.0,60893.0,0.18545924]
[1722707138176,2.495896,60894.0,60893.0,0.028]
[1722707139325,2.167457,60894.0,60893.0,0.028]
[1722707139533,2.495896,60894.0,60893.0,0.028]
[1722707140367,2.505896,60894.0,60893.0,0.00825275]
[1722707140572,2.505896,60894.0,60884.0,0.000913]
[1722707140573,1.298308,60885.0,60884.0,0.000913]
[1722707140773,1.485108,60885.0,60884.0,0.000913]
[1722707142191,1.485108,60885.0,60884.0,0.010913]
[1722707142837,1.48446236,60885.0,60884.0,0.010913]
[1722707143157,1.48546236,60885.0,60884.0,0.022913]
[1722707144671,1.48546236,60885.0,60884.0,0.01340348]
[1722707144672,2.17243836,60885.0,60884.0,0.01340348]
[1722707144877,0.82126,60882.0,60881.0,0.66795762]
[1722707145085,1.636768,60882.0,60881.0,0.6399761]
[1722707145495,1.985272,60882.0,60881.0,0.60082316]
[1722707145911,2.158672,60882.0,60881.0,0.51019901]
[1722707146113,2.258672,60882.0,60881.0,0.48119901]
[1722707146331,2.269672,60882.0,60881.0,0.48219901]
[1722707146744,1.924168,60882.0,60881.0,0.48219901]
[1722707146955,1.938168,60882.0,60881.0,0.48219901]
[1722707147158,1.958168,60882.0,60881.0,0.49289484]
[1722707147362,1.944168,60882.0,60881.0,0.49289484]
[1722707147565,2.272672,60882.0,60881.0,0.44076484]
[1722707147946,2.272672,60882.0,60881.0,0.43006901]
[1722707148099,2.258672,60882.0,60881.0,0.42906901]
[1722707148316,2.272672,60882.0,60881.0,0.29540901]
[1722707148575,0.0811,60868.0,60854.0,0.00157439]
[1722707148780,0.0811,60868.0,60850.0,0.47251164]
[1722707148781,0.164325,60855.0,60850.0,0.47251164]
[1722707148963,0.328627,60860.0,60851.0,0.230148]
[1722707148964,0.164317,60858.0,60851.0,0.230148]
[1722707149204,0.164314,60859.0,60852.0,0.164331]
[1722707149407,0.164304,60863.0,60856.0,0.164321]
[1722707149622,0.0811,60868.0,60851.0,0.06909949]
[1722707149623,0.0811,60868.0,60851.0,0.065813]
[1722707149828,0.328603,60864.0,60851.0,0.065813]
[1722707150033,0.164311,60861.0,60853.0,0.164328]
[1722707150225,0.164311,60860.0,60853.0,0.164328]
[1722707150447,0.001,60859.0,60854.0,0.01082029]
[1722707150650,0.001,60859.0,60852.0,0.329664]
[1722707150828,0.165314,60859.0,60855.0,0.01081568]
[1722707151028,0.164317,60858.0,60855.0,0.01081568]
[1722707151233,0.001,60859.0,60856.0,0.15745924]
[1722707151234,0.49296,60857.0,60856.0,0.15745924]
[1722707151433,0.49296,60857.0,60856.0,0.17027031]
[1722707152037,0.821599,60857.0,60856.0,0.01081107]
[1722707152244,0.821665,60852.0,60851.0,0.001]
[1722707152442,1.150331,60852.0,60851.0,0.001]
[1722707152611,1.217731,60852.0,60851.0,0.001]
[1722707153014,1.217731,60852.0,60839.0,0.065822]
[1722707153015,0.164365,60840.0,60839.0,0.065822]
[1722707153218,0.16437,60838.0,60837.0,0.000913]
[1722707153417,0.32872,60842.0,60837.0,0.15837224]
[1722707153804,0.164366,60840.0,60837.0,0.15837224]
[1722707154268,0.0811,60844.0,60837.0,0.15837224]
[1722707154506,0.328715,60843.0,60837.0,0.15837224]
[1722707154719,0.328728,60841.0,60837.0,0.15837224]
[1722707154934,0.16437,60838.0,60837.0,0.15837224]
[1722707155213,0.493111,60838.0,60837.0,0.15837224]
[1722707155675,0.16437,60838.0,60837.0,0.15937224]
[1722707155903,0.493111,60838.0,60837.0,0.15937224]
[1722707156137,0.164368,60839.0,60837.0,0.15837224]
[1722707156369,0.001,60838.0,60837.0,0.15937224]
[1722707156628,0.001,60838.0,60837.0,0.65249224]
[1722707156891,0.001,60838.0,60837.0,0.32374524]
[1722707157144,0.002,60838.0,60837.0,0.32374524]
[1722707157393,0.002,60838.0,60837.0,0.65249224]
[1722707157611,0.002,60838.0,60837.0,0.15937224]